[Event "*** Titled Tuesday Blitz"]
[Site "Chess.com"]
[Date "2019.03.05"]
[Round "10"]
[White "Hieronymus00"]
[Black "Stephenzinho"]
[Result "0-1"]
[WhiteElo "2209"]
[BlackElo "2381"]
[TimeControl "180+2"]
[EndTime "15:29:40 PST"]
[Termination "Stephenzinho won by resignation"]

1. e4 {[%clk 0:03:01.9]} 1... e5 {[%clk 0:03:00.8]} 2. Nf3 {[%clk 0:03:01.8]}
2... Nc6 {[%clk 0:03:02.1]} 3. Bb5 {[%clk 0:03:02.3]} 3... a6 {[%clk 0:03:02.9]}
4. Ba4 {[%clk 0:03:03.5]} 4... Nf6 {[%clk 0:03:04.1]} 5. O-O {[%clk 0:03:04.3]}
5... Be7 {[%clk 0:03:05.6]} 6. Re1 {[%clk 0:03:05.1]} 6... b5 {[%clk 0:03:07]}
7. Bb3 {[%clk 0:03:06.3]} 7... d6 {[%clk 0:03:08.9]} 8. c3 {[%clk 0:03:07.4]}
8... O-O {[%clk 0:03:09.5]} 9. h3 {[%clk 0:03:08.8]} 9... Nb8 {[%clk 0:03:10.7]}
10. d4 {[%clk 0:03:09.4]} 10... Nbd7 {[%clk 0:03:12.3]} 11. Nbd2 {[%clk
0:03:10.5]} 11... c5 {[%clk 0:03:13.6]} 12. Nf1 {[%clk 0:03:09.4]} 12... Re8
{[%clk 0:03:14.3]} 13. Ng3 {[%clk 0:03:05.3]} 13... Bf8 {[%clk 0:03:14.3]} 14.
Nf5 {[%clk 0:02:58.2]} 14... Bb7 {[%clk 0:02:52.1]} 15. d5 {[%clk 0:02:47.1]}
15... c4 {[%clk 0:02:50.3]} 16. Bc2 {[%clk 0:02:48]} 16... Nc5 {[%clk
0:02:51.4]} 17. b4 {[%clk 0:02:44.5]} 17... cxb3 {[%clk 0:02:50.1]} 18. axb3
{[%clk 0:02:45.2]} 18... Bc8 {[%clk 0:02:42.2]} 19. b4 {[%clk 0:02:35.9]} 19...
Ncd7 {[%clk 0:02:38.6]} 20. g4 {[%clk 0:02:27.7]} 20... Nb6 {[%clk 0:02:39]} 21.
g5 {[%clk 0:02:27.6]} 21... Nh5 {[%clk 0:02:36.1]} 22. Nh2 {[%clk 0:02:23.3]}
22... g6 {[%clk 0:02:25.5]} 23. Qf3 {[%clk 0:02:00.9]} 23... Nf4 {[%clk
0:02:12.4]} 24. Bxf4 {[%clk 0:01:55.1]} 24... exf4 {[%clk 0:02:12.9]} 25. Nd4
{[%clk 0:01:50.3]} 25... Qxg5+ {[%clk 0:02:12.4]} 26. Kh1 {[%clk 0:01:51.1]}
26... Nc4 {[%clk 0:02:04.5]} 27. Rg1 {[%clk 0:01:47]} 27... Qf6 {[%clk
0:02:04.3]} 28. Ng4 {[%clk 0:01:35.1]} 28... Bxg4 {[%clk 0:02:03.9]} 29. Qxg4
{[%clk 0:01:32.2]} 29... Ne5 {[%clk 0:02:02.4]} 30. Qg2 {[%clk 0:01:26.2]} 30...
f3 {[%clk 0:02:00.1]} 31. Qg3 {[%clk 0:01:25.8]} 31... Rec8 {[%clk 0:01:51.7]}
32. Bd1 {[%clk 0:01:06.6]} 32... Rxc3 {[%clk 0:01:49.2]} 33. Nxb5 {[%clk
0:01:07.3]} 33... Rc4 {[%clk 0:01:38.3]} 34. Qg5 {[%clk 0:00:41.9]} 34... Qxg5
{[%clk 0:01:31.9]} 35. Rxg5 {[%clk 0:00:42.4]} 35... Rxb4 {[%clk 0:01:26.5]} 36.
Nc3 {[%clk 0:00:32.8]} 36... Rc8 {[%clk 0:01:24.8]} 37. Na4 {[%clk 0:00:20.3]}
37... Rxe4 {[%clk 0:01:18.2]} 38. Nb6 {[%clk 0:00:20.2]} 38... Rc3 {[%clk
0:01:14.3]} 39. Rg1 {[%clk 0:00:18.9]} 39... Rh4 {[%clk 0:01:02.4]} 40. Kh2
{[%clk 0:00:19]} 40... Bh6 {[%clk 0:01:01.8]} 41. Kg3 {[%clk 0:00:19.2]} 41...
Rd4 {[%clk 0:00:57.8]} 42. h4 {[%clk 0:00:18.7]} 42... Bf4+ {[%clk 0:00:58.8]}
43. Kh3 {[%clk 0:00:19.7]} 43... Nd3 {[%clk 0:00:46.2]} 44. Bxf3 {[%clk
0:00:19.3]} 44... Ne5 {[%clk 0:00:41]} 45. Kg2 {[%clk 0:00:16.5]} 45... Nxf3
{[%clk 0:00:42.1]} 46. Rgb1 {[%clk 0:00:16.2]} 46... Nxh4+ {[%clk 0:00:43.1]}
47. Kf1 {[%clk 0:00:17.2]} 47... Rh3 {[%clk 0:00:40.6]} 0-1

[Event "*** Titled Tuesday Blitz"]
[Site "Chess.com"]
[Date "2019.03.05"]
[Round "10"]
[White "LarissaSteenbekkers"]
[Black "DACF2905"]
[Result "1/2-1/2"]
[WhiteElo "2021"]
[BlackElo "2067"]
[TimeControl "180+2"]
[EndTime "15:29:48 PST"]
[Termination "Game drawn by repetition"]

1. e4 {[%clk 0:03:01.9]} 1... c5 {[%clk 0:03:00.1]} 2. Nf3 {[%clk 0:03:00.8]}
2... e6 {[%clk 0:03:00.2]} 3. d4 {[%clk 0:03:00.4]} 3... cxd4 {[%clk 0:03:02.1]}
4. Nxd4 {[%clk 0:03:00.8]} 4... a6 {[%clk 0:03:04]} 5. Nc3 {[%clk 0:03:00]} 5...
Qc7 {[%clk 0:02:57.1]} 6. g3 {[%clk 0:02:58.8]} 6... Nf6 {[%clk 0:02:49.2]} 7.
Bg2 {[%clk 0:02:57.9]} 7... Bc5 {[%clk 0:02:40.5]} 8. O-O {[%clk 0:02:53.2]}
8... O-O {[%clk 0:02:34.6]} 9. Be3 {[%clk 0:02:31.6]} 9... b5 {[%clk 0:02:31.6]}
10. a3 {[%clk 0:02:28]} 10... Bb7 {[%clk 0:02:31]} 11. Qd3 {[%clk 0:02:19.4]}
11... d6 {[%clk 0:02:18.5]} 12. Bg5 {[%clk 0:02:08.8]} 12... Nbd7 {[%clk
0:02:18.2]} 13. h3 {[%clk 0:02:00.9]} 13... h6 {[%clk 0:02:11.5]} 14. Be3 {[%clk
0:01:57.5]} 14... Ne5 {[%clk 0:02:10.7]} 15. Qe2 {[%clk 0:01:53.9]} 15... Nc4
{[%clk 0:02:11.1]} 16. Ndxb5 {[%clk 0:01:46.4]} 16... axb5 {[%clk 0:02:06.2]}
17. Nxb5 {[%clk 0:01:46.4]} 17... Qb6 {[%clk 0:02:07.8]} 18. Qxc4 {[%clk
0:01:46.1]} 18... Bxe3 {[%clk 0:02:08.4]} 19. fxe3 {[%clk 0:01:45.8]} 19...
Qxe3+ {[%clk 0:02:09.4]} 20. Kh2 {[%clk 0:01:45]} 20... Rac8 {[%clk 0:02:06.1]}
21. Qb4 {[%clk 0:01:40.5]} 21... Rxc2 {[%clk 0:02:02.8]} 22. Nxd6 {[%clk
0:01:32.6]} 22... Nh5 {[%clk 0:01:46.1]} 23. Qe1 {[%clk 0:01:04.6]} 23... Re2
{[%clk 0:01:44.2]} 24. Qc3 {[%clk 0:00:59.9]} 24... Qg5 {[%clk 0:01:11.8]} 25.
Nxb7 {[%clk 0:00:53.3]} 25... Re3 {[%clk 0:01:12.7]} 26. Qc7 {[%clk 0:00:43.1]}
26... e5 {[%clk 0:01:11.1]} 27. g4 {[%clk 0:00:36.1]} 27... Ng3 {[%clk
0:00:38.7]} 28. Rf3 {[%clk 0:00:28.1]} 28... Rxf3 {[%clk 0:00:39.3]} 29. Bxf3
{[%clk 0:00:27.4]} 29... Qf4 {[%clk 0:00:39]} 30. Kg2 {[%clk 0:00:27.1]} 30...
h5 {[%clk 0:00:32.3]} 31. gxh5 {[%clk 0:00:24.2]} 31... Qg5 {[%clk 0:00:31.4]}
32. Kf2 {[%clk 0:00:22.8]} 32... Qh4 {[%clk 0:00:30.1]} 33. Kg2 {[%clk
0:00:21.3]} 33... Qg5 {[%clk 0:00:28.3]} 34. Bg4 {[%clk 0:00:20.4]} 34... Nxe4
{[%clk 0:00:25.3]} 35. Rf1 {[%clk 0:00:17.3]} 35... f5 {[%clk 0:00:22.9]} 36.
Qxe5 {[%clk 0:00:13]} 36... Qd2+ {[%clk 0:00:20.7]} 37. Kg1 {[%clk 0:00:11.4]}
37... Qe3+ {[%clk 0:00:21.3]} 38. Kg2 {[%clk 0:00:10.1]} 38... fxg4 {[%clk
0:00:21.9]} 39. Qe6+ {[%clk 0:00:09.1]} 39... Kh7 {[%clk 0:00:23.2]} 40. Qg6+
{[%clk 0:00:08.6]} 40... Kg8 {[%clk 0:00:23.9]} 41. Qe6+ {[%clk 0:00:08.6]}
41... Kh7 {[%clk 0:00:23.5]} 42. Qg6+ {[%clk 0:00:09.1]} 42... Kg8 {[%clk
0:00:24.7]} 43. Qe6+ {[%clk 0:00:09.4]} 43... Kh7 {[%clk 0:00:25.8]} 44. Qg6+
{[%clk 0:00:09.9]} 44... Kg8 {[%clk 0:00:26.7]} 45. Qe6+ {[%clk 0:00:10.3]}
45... Kh7 {[%clk 0:00:27.5]} 46. Qg6+ {[%clk 0:00:11]} 46... Kg8 {[%clk
0:00:28.7]} 1/2-1/2

[Event "*** Titled Tuesday Blitz"]
[Site "Chess.com"]
[Date "2019.03.05"]
[Round "10"]
[White "GrandGlacier"]
[Black "fyall777"]
[Result "1-0"]
[WhiteElo "2186"]
[BlackElo "2316"]
[TimeControl "180+2"]
[EndTime "15:29:52 PST"]
[Termination "GrandGlacier won by checkmate"]

1. e4 {[%clk 0:03:01.9]} 1... e5 {[%clk 0:02:59.8]} 2. Nf3 {[%clk 0:03:02.7]}
2... Nc6 {[%clk 0:03:00.9]} 3. Bb5 {[%clk 0:03:04.2]} 3... a6 {[%clk 0:03:01.8]}
4. Ba4 {[%clk 0:03:05.4]} 4... Nf6 {[%clk 0:03:03]} 5. d3 {[%clk 0:03:04.7]}
5... b5 {[%clk 0:03:02.2]} 6. Bb3 {[%clk 0:03:05.9]} 6... Be7 {[%clk 0:03:03.7]}
7. a4 {[%clk 0:03:06.3]} 7... Bb7 {[%clk 0:03:03.5]} 8. O-O {[%clk 0:03:05.3]}
8... O-O {[%clk 0:03:03.8]} 9. axb5 {[%clk 0:03:05.6]} 9... axb5 {[%clk
0:03:04.1]} 10. Rxa8 {[%clk 0:03:06.9]} 10... Qxa8 {[%clk 0:03:05.2]} 11. Nc3
{[%clk 0:03:07.3]} 11... b4 {[%clk 0:02:53.3]} 12. Nd5 {[%clk 0:03:07.8]} 12...
Nxd5 {[%clk 0:02:54.2]} 13. Bxd5 {[%clk 0:02:49.5]} 13... d6 {[%clk 0:02:51]}
14. c3 {[%clk 0:02:22.3]} 14... bxc3 {[%clk 0:02:39.6]} 15. bxc3 {[%clk
0:02:22.5]} 15... Nd8 {[%clk 0:02:38.8]} 16. Bxb7 {[%clk 0:02:02]} 16... Qxb7
{[%clk 0:02:39.1]} 17. Ba3 {[%clk 0:01:52.5]} 17... Ne6 {[%clk 0:02:38]} 18.
Nxe5 {[%clk 0:01:51.3]} 18... dxe5 {[%clk 0:02:22]} 19. Bxe7 {[%clk 0:01:50.7]}
19... Ra8 {[%clk 0:02:22.6]} 20. Qb1 {[%clk 0:01:41.1]} 20... Qa6 {[%clk
0:02:20.8]} 21. Bh4 {[%clk 0:01:25.5]} 21... Nf4 {[%clk 0:02:18.3]} 22. c4
{[%clk 0:01:20.7]} 22... Qa3 {[%clk 0:02:12.6]} 23. Bg3 {[%clk 0:01:20.3]} 23...
Nxd3 {[%clk 0:01:55]} 24. Rd1 {[%clk 0:01:16.4]} 24... Nf4 {[%clk 0:01:43.8]}
25. Bxf4 {[%clk 0:00:43.5]} 25... exf4 {[%clk 0:01:44.7]} 26. h3 {[%clk
0:00:39.1]} 26... g6 {[%clk 0:01:35.8]} 27. Qb7 {[%clk 0:00:26.8]} 27... Qa5
{[%clk 0:01:36]} 28. Qd5 {[%clk 0:00:17.3]} 28... Qa4 {[%clk 0:01:28.4]} 29. e5
{[%clk 0:00:16.5]} 29... Re8 {[%clk 0:01:25.6]} 30. Re1 {[%clk 0:00:15.4]} 30...
Qb4 {[%clk 0:01:21.5]} 31. Qe4 {[%clk 0:00:14]} 31... Qd2 {[%clk 0:01:14.5]} 32.
Kf1 {[%clk 0:00:12.8]} 32... Ra8 {[%clk 0:01:06.2]} 33. e6 {[%clk 0:00:12.7]}
33... Ra2 {[%clk 0:00:26.2]} 34. exf7+ {[%clk 0:00:13.5]} 34... Kxf7 {[%clk
0:00:26.5]} 35. Qe8+ {[%clk 0:00:14.1]} 35... Kg7 {[%clk 0:00:23.6]} 36. Qe7+
{[%clk 0:00:14.9]} 36... Kg8 {[%clk 0:00:22.8]} 37. Qe8+ {[%clk 0:00:12.4]}
37... Kg7 {[%clk 0:00:23.9]} 38. Re7+ {[%clk 0:00:09.5]} 38... Kh6 {[%clk
0:00:22.7]} 39. Qf8+ {[%clk 0:00:10.6]} 39... Kh5 {[%clk 0:00:17.5]} 40. Rxh7+
{[%clk 0:00:10.5]} 40... Kg5 {[%clk 0:00:18.7]} 41. Qe7+ {[%clk 0:00:11]} 41...
Kf5 {[%clk 0:00:19.2]} 42. Rf7# {[%clk 0:00:11.9]} 1-0

[Event "*** Titled Tuesday Blitz"]
[Site "Chess.com"]
[Date "2019.03.05"]
[Round "10"]
[White "Salem-AR"]
[Black "Man-Chuk"]
[Result "1-0"]
[WhiteElo "2921"]
[BlackElo "2770"]
[TimeControl "180+2"]
[EndTime "15:29:56 PST"]
[Termination "Salem-AR won on time"]

1. d4 {[%clk 0:03:01.9]} 1... Nf6 {[%clk 0:02:56]} 2. c4 {[%clk 0:03:02.7]} 2...
e6 {[%clk 0:02:55.5]} 3. Nf3 {[%clk 0:03:04.1]} 3... d5 {[%clk 0:02:55.7]} 4.
Nc3 {[%clk 0:03:04.7]} 4... Bb4 {[%clk 0:02:51.8]} 5. Bg5 {[%clk 0:03:05.2]}
5... h6 {[%clk 0:02:51.2]} 6. Bxf6 {[%clk 0:03:06.3]} 6... Qxf6 {[%clk
0:02:53.1]} 7. e3 {[%clk 0:03:08]} 7... O-O {[%clk 0:02:52.2]} 8. Rc1 {[%clk
0:03:09.6]} 8... c6 {[%clk 0:02:35.8]} 9. a3 {[%clk 0:03:08.4]} 9... Bd6 {[%clk
0:02:34]} 10. Qc2 {[%clk 0:02:55.4]} 10... Nd7 {[%clk 0:02:31.7]} 11. Bd3 {[%clk
0:02:54.1]} 11... Qe7 {[%clk 0:02:12.5]} 12. O-O {[%clk 0:02:46.8]} 12... a6
{[%clk 0:01:46.7]} 13. Rfd1 {[%clk 0:02:39.3]} 13... g6 {[%clk 0:01:39.8]} 14.
h3 {[%clk 0:02:35.3]} 14... f5 {[%clk 0:01:40.4]} 15. b4 {[%clk 0:02:28.4]}
15... Kg7 {[%clk 0:01:35.6]} 16. Rb1 {[%clk 0:02:27.7]} 16... Nf6 {[%clk
0:01:32.5]} 17. Ne5 {[%clk 0:02:20]} 17... Bd7 {[%clk 0:01:29.4]} 18. a4 {[%clk
0:02:03.3]} 18... Rfc8 {[%clk 0:01:23.9]} 19. Qb3 {[%clk 0:01:57.4]} 19... Be8
{[%clk 0:01:16.4]} 20. Ne2 {[%clk 0:01:32.4]} 20... Bxe5 {[%clk 0:00:55.3]} 21.
dxe5 {[%clk 0:01:33]} 21... Nd7 {[%clk 0:00:56.5]} 22. Qc3 {[%clk 0:01:22.8]}
22... a5 {[%clk 0:00:52.6]} 23. bxa5 {[%clk 0:01:21.4]} 23... Nc5 {[%clk
0:00:53.1]} 24. Bc2 {[%clk 0:01:22.4]} 24... Qc7 {[%clk 0:00:50.4]} 25. Rb6
{[%clk 0:01:14.1]} 25... Nd7 {[%clk 0:00:50.3]} 26. Rdb1 {[%clk 0:01:09.8]}
26... Nxb6 {[%clk 0:00:46.9]} 27. axb6 {[%clk 0:01:11.1]} 27... Qe7 {[%clk
0:00:22.1]} 28. c5 {[%clk 0:01:12.3]} 28... g5 {[%clk 0:00:22.8]} 29. Nd4 {[%clk
0:01:13.3]} 29... Bg6 {[%clk 0:00:23]} 30. f4 {[%clk 0:01:07.3]} 30... Ra6
{[%clk 0:00:23.4]} 31. a5 {[%clk 0:01:05.9]} 31... gxf4 {[%clk 0:00:18.6]} 32.
exf4 {[%clk 0:01:06.6]} 32... Kh7 {[%clk 0:00:17.9]} 33. Bd3 {[%clk 0:01:07.5]}
33... Raa8 {[%clk 0:00:10.7]} 34. a6 {[%clk 0:01:08.2]} 34... Rg8 {[%clk
0:00:08.3]} 35. axb7 {[%clk 0:00:49.7]} 35... Qxb7 {[%clk 0:00:07.7]} 36. Nxe6
{[%clk 0:00:51.3]} 36... Qe7 {[%clk 0:00:08.6]} 37. Nd4 {[%clk 0:00:50.6]} 37...
Qh4 {[%clk 0:00:07.7]} 38. Qd2 {[%clk 0:00:44.4]} 38... Ra4 {[%clk 0:00:08.3]}
39. Bf1 {[%clk 0:00:31.8]} 39... Ra3 {[%clk 0:00:07.8]} 40. Qf2 {[%clk
0:00:23.4]} 1-0

[Event "*** Titled Tuesday Blitz"]
[Site "Chess.com"]
[Date "2019.03.05"]
[Round "10"]
[White "pedro_gines"]
[Black "NoGalloNoParty"]
[Result "0-1"]
[WhiteElo "2387"]
[BlackElo "2354"]
[TimeControl "180+2"]
[EndTime "15:30:11 PST"]
[Termination "NoGalloNoParty won by checkmate"]

1. Nf3 {[%clk 0:03:00.6]} 1... Nf6 {[%clk 0:03:00.3]} 2. b3 {[%clk 0:03:02]}
2... g6 {[%clk 0:03:00.5]} 3. Bb2 {[%clk 0:03:03.5]} 3... Bg7 {[%clk 0:03:01.8]}
4. g3 {[%clk 0:03:05]} 4... b6 {[%clk 0:03:02.4]} 5. Bg2 {[%clk 0:03:06.5]} 5...
Bb7 {[%clk 0:03:03.7]} 6. O-O {[%clk 0:03:08]} 6... c5 {[%clk 0:03:04.5]} 7. c4
{[%clk 0:03:08.9]} 7... O-O {[%clk 0:03:04.7]} 8. Nc3 {[%clk 0:03:09.7]} 8... d5
{[%clk 0:03:03.6]} 9. Nxd5 {[%clk 0:03:11.3]} 9... Nxd5 {[%clk 0:03:03.6]} 10.
Bxg7 {[%clk 0:03:12.8]} 10... Kxg7 {[%clk 0:03:04.6]} 11. cxd5 {[%clk 0:03:14]}
11... Bxd5 {[%clk 0:03:02.6]} 12. Qc2 {[%clk 0:03:14.6]} 12... Nc6 {[%clk
0:02:44.2]} 13. a3 {[%clk 0:03:11.9]} 13... Rc8 {[%clk 0:02:42.4]} 14. b4 {[%clk
0:03:09.7]} 14... Bxf3 {[%clk 0:01:59.4]} 15. Bxf3 {[%clk 0:03:05]} 15... Nd4
{[%clk 0:01:57.1]} 16. Qb2 {[%clk 0:03:02]} 16... f6 {[%clk 0:01:54.4]} 17. Bg4
{[%clk 0:02:59.6]} 17... f5 {[%clk 0:01:49.4]} 18. Bf3 {[%clk 0:03:00.3]} 18...
e5 {[%clk 0:01:50]} 19. bxc5 {[%clk 0:02:47.6]} 19... Rxc5 {[%clk 0:01:47.5]}
20. Rfc1 {[%clk 0:02:42.3]} 20... Rxc1+ {[%clk 0:00:55.6]} 21. Rxc1 {[%clk
0:02:41.9]} 21... Nxf3+ {[%clk 0:00:56.3]} 22. exf3 {[%clk 0:02:43.8]} 22... Qd4
{[%clk 0:00:56.5]} 23. Qxd4 {[%clk 0:02:43.5]} 23... exd4 {[%clk 0:00:57.1]} 24.
Rc7+ {[%clk 0:02:45]} 24... Rf7 {[%clk 0:00:58]} 25. Rc8 {[%clk 0:02:45.7]}
25... Rd7 {[%clk 0:00:54.3]} 26. Kf1 {[%clk 0:02:46.3]} 26... d3 {[%clk
0:00:40.3]} 27. f4 {[%clk 0:02:47]} 27... Kf7 {[%clk 0:00:40.1]} 28. f3 {[%clk
0:02:47.9]} 28... Ke6 {[%clk 0:00:40.6]} 29. Kf2 {[%clk 0:02:48.7]} 29... Rd5
{[%clk 0:00:33.1]} 30. Ke3 {[%clk 0:02:48.6]} 30... Ra5 {[%clk 0:00:33.7]} 31.
Rc3 {[%clk 0:02:48.9]} 31... Ra4 {[%clk 0:00:28.1]} 32. Rxd3 {[%clk 0:02:48.8]}
32... h5 {[%clk 0:00:21]} 33. h4 {[%clk 0:02:47.3]} 33... b5 {[%clk 0:00:19.6]}
34. Rb3 {[%clk 0:02:47.8]} 34... a6 {[%clk 0:00:20.1]} 35. d3 {[%clk 0:02:48.7]}
35... Kd5 {[%clk 0:00:21.1]} 36. Rc3 {[%clk 0:02:49.1]} 36... Kd6 {[%clk
0:00:20.4]} 37. Kd2 {[%clk 0:02:27.5]} 37... Kd5 {[%clk 0:00:21]} 38. Kc2 {[%clk
0:02:28.7]} 38... a5 {[%clk 0:00:20.3]} 39. Kb3 {[%clk 0:02:28.8]} 39... Rd4
{[%clk 0:00:20.4]} 40. Kc2 {[%clk 0:02:29.5]} 40... Ra4 {[%clk 0:00:20.7]} 41.
Rb3 {[%clk 0:02:28.3]} 41... Kc5 {[%clk 0:00:20.3]} 42. Kc3 {[%clk 0:02:25.4]}
42... b4+ {[%clk 0:00:21]} 43. axb4+ {[%clk 0:02:25.5]} 43... axb4+ {[%clk
0:00:22.9]} 44. Kd2 {[%clk 0:02:26.2]} 44... Ra2+ {[%clk 0:00:23.9]} 45. Ke3
{[%clk 0:02:27.4]} 45... Rg2 {[%clk 0:00:24.3]} 46. Rb1 {[%clk 0:02:26.7]} 46...
Rxg3 {[%clk 0:00:24.4]} 47. Kf2 {[%clk 0:02:16.7]} 47... Rh3 {[%clk 0:00:24.3]}
48. Kg2 {[%clk 0:02:17.9]} 48... Rxh4 {[%clk 0:00:22.7]} 49. Kg3 {[%clk
0:02:19.5]} 49... g5 {[%clk 0:00:24]} 50. fxg5 {[%clk 0:02:21.3]} 50... Rd4
{[%clk 0:00:25.1]} 51. Rc1+ {[%clk 0:02:15.9]} 51... Kd6 {[%clk 0:00:25.2]} 52.
Rc8 {[%clk 0:02:05.9]} 52... h4+ {[%clk 0:00:19.4]} 53. Kg2 {[%clk 0:02:05.4]}
53... Ke5 {[%clk 0:00:19.9]} 54. Kf2 {[%clk 0:01:45.6]} 54... b3 {[%clk
0:00:19]} 55. g6 {[%clk 0:01:42]} 55... Kf6 {[%clk 0:00:19.6]} 56. Rc6+ {[%clk
0:01:41.9]} 56... Kg7 {[%clk 0:00:20.3]} 57. Ke3 {[%clk 0:01:43.1]} 57... Rb4
{[%clk 0:00:21.1]} 58. Rc1 {[%clk 0:01:35.9]} 58... b2 {[%clk 0:00:20.4]} 59.
Rb1 {[%clk 0:01:37.8]} 59... Kxg6 {[%clk 0:00:21.4]} 60. f4 {[%clk 0:01:32.9]}
60... Kf6 {[%clk 0:00:21.3]} 61. Kd2 {[%clk 0:01:32.4]} 61... h3 {[%clk
0:00:21.9]} 62. Ke3 {[%clk 0:01:32.6]} 62... h2 {[%clk 0:00:23]} 63. Kf2 {[%clk
0:01:33.7]} 63... h1=Q {[%clk 0:00:23.6]} 64. Rxh1 {[%clk 0:01:33.8]} 64... b1=Q
{[%clk 0:00:24.9]} 65. Rh6+ {[%clk 0:01:34.2]} 65... Kg7 {[%clk 0:00:25.8]} 66.
Rc6 {[%clk 0:01:34.7]} 66... Rb2+ {[%clk 0:00:26.7]} 67. Ke3 {[%clk 0:01:34.7]}
67... Qg1+ {[%clk 0:00:26.3]} 68. Kf3 {[%clk 0:01:35.5]} 68... Qh1+ {[%clk
0:00:27.3]} 69. Ke3 {[%clk 0:01:36]} 69... Qxc6 {[%clk 0:00:27.3]} 70. Kd4
{[%clk 0:01:37.4]} 70... Rb4+ {[%clk 0:00:27.9]} 71. Ke5 {[%clk 0:01:38.3]}
71... Rb5+ {[%clk 0:00:28.2]} 72. Kd4 {[%clk 0:01:39.2]} 72... Qc5# {[%clk
0:00:29.5]} 0-1

[Event "*** Titled Tuesday Blitz"]
[Site "Chess.com"]
[Date "2019.03.05"]
[Round "10"]
[White "yuki_chess123"]
[Black "PowerThinking2650"]
[Result "0-1"]
[WhiteElo "2134"]
[BlackElo "2336"]
[TimeControl "180+2"]
[EndTime "15:30:25 PST"]
[Termination "PowerThinking2650 won by resignation"]

1. e4 {[%clk 0:03:01.9]} 1... e5 {[%clk 0:03:00.5]} 2. Nf3 {[%clk 0:03:02.4]}
2... Nc6 {[%clk 0:03:01.1]} 3. Bb5 {[%clk 0:03:03.9]} 3... a6 {[%clk 0:03:01.3]}
4. Bxc6 {[%clk 0:03:05.1]} 4... dxc6 {[%clk 0:03:01.8]} 5. Nc3 {[%clk
0:03:06.6]} 5... f6 {[%clk 0:03:01.6]} 6. d4 {[%clk 0:03:06.1]} 6... exd4 {[%clk
0:03:02.1]} 7. Nxd4 {[%clk 0:03:07.6]} 7... c5 {[%clk 0:03:02.3]} 8. Nde2 {[%clk
0:03:09.1]} 8... Qxd1+ {[%clk 0:03:02.6]} 9. Nxd1 {[%clk 0:03:10.6]} 9... Bd7
{[%clk 0:02:59]} 10. Bf4 {[%clk 0:03:11.9]} 10... O-O-O {[%clk 0:02:59.1]} 11.
Ne3 {[%clk 0:03:13.3]} 11... Ne7 {[%clk 0:02:59.1]} 12. O-O-O {[%clk 0:03:11.5]}
12... g5 {[%clk 0:03:00]} 13. Bg3 {[%clk 0:03:11.9]} 13... Bg7 {[%clk
0:02:59.8]} 14. h4 {[%clk 0:02:27.7]} 14... h6 {[%clk 0:03:00.1]} 15. hxg5
{[%clk 0:02:23.8]} 15... hxg5 {[%clk 0:03:00.7]} 16. Rxh8 {[%clk 0:02:20.3]}
16... Rxh8 {[%clk 0:03:01.1]} 17. Nc3 {[%clk 0:02:16.1]} 17... f5 {[%clk
0:02:27.8]} 18. exf5 {[%clk 0:02:07.3]} 18... Bd4 {[%clk 0:02:15.9]} 19. f6
{[%clk 0:02:02.5]} 19... Bxf6 {[%clk 0:02:13.5]} 20. Ncd5 {[%clk 0:02:02.6]}
20... Nxd5 {[%clk 0:02:11.6]} 21. Nxd5 {[%clk 0:02:03.4]} 21... Bd8 {[%clk
0:02:11.8]} 22. Nc3 {[%clk 0:01:31.9]} 22... Bc6 {[%clk 0:02:03.1]} 23. f3
{[%clk 0:01:29.1]} 23... g4 {[%clk 0:01:59.2]} 24. Ne4 {[%clk 0:01:25.7]} 24...
gxf3 {[%clk 0:01:57.1]} 25. gxf3 {[%clk 0:01:25.1]} 25... b6 {[%clk 0:01:55.8]}
26. Rf1 {[%clk 0:01:03.9]} 26... Rh3 {[%clk 0:01:24.2]} 27. Be5 {[%clk
0:00:44.4]} 27... Bb5 {[%clk 0:01:19.7]} 28. Rf2 {[%clk 0:00:41.4]} 28... Bh4
{[%clk 0:01:20.4]} 29. Rg2 {[%clk 0:00:23.4]} 29... Rxf3 {[%clk 0:01:20.9]} 30.
Nc3 {[%clk 0:00:16.8]} 30... Bc6 {[%clk 0:01:06.5]} 31. Rg7 {[%clk 0:00:16.4]}
31... Bd8 {[%clk 0:00:59.5]} 32. Rg8 {[%clk 0:00:16.8]} 32... Kd7 {[%clk
0:00:51.6]} 33. a3 {[%clk 0:00:15.8]} 33... Rf1+ {[%clk 0:00:42.8]} 34. Kd2
{[%clk 0:00:16.3]} 34... Rf2+ {[%clk 0:00:43.8]} 35. Kc1 {[%clk 0:00:15.6]}
35... b5 {[%clk 0:00:38.1]} 36. Rg7+ {[%clk 0:00:15.2]} 36... Kc8 {[%clk
0:00:34.5]} 37. Rg6 {[%clk 0:00:14.1]} 37... Kb7 {[%clk 0:00:34.8]} 38. Rg7
{[%clk 0:00:13.9]} 38... b4 {[%clk 0:00:34.3]} 39. Nd1 {[%clk 0:00:04]} 39...
Re2 {[%clk 0:00:33.1]} 40. Bf4 {[%clk 0:00:02.2]} 40... Be4 {[%clk 0:00:28.8]}
41. Bd2 {[%clk 0:00:02.9]} 41... Bf6 {[%clk 0:00:21.5]} 42. Rf7 {[%clk
0:00:02.4]} 42... Bg5 {[%clk 0:00:21.6]} 43. Bxg5 {[%clk 0:00:02.8]} 43... Rxc2+
{[%clk 0:00:22]} 44. Kb1 {[%clk 0:00:04.3]} 44... Rf2+ {[%clk 0:00:21.9]} 45.
Ka2 {[%clk 0:00:05]} 45... Rxf7 {[%clk 0:00:21.7]} 46. axb4 {[%clk 0:00:06.6]}
46... cxb4 {[%clk 0:00:23]} 47. Ne3 {[%clk 0:00:07]} 47... a5 {[%clk 0:00:22]}
48. Kb3 {[%clk 0:00:07.8]} 48... Kb6 {[%clk 0:00:22.6]} 49. Nc4+ {[%clk
0:00:08.8]} 49... Kb5 {[%clk 0:00:23.4]} 50. Ne5 {[%clk 0:00:06.8]} 50... Bd5+
{[%clk 0:00:23.4]} 51. Kc2 {[%clk 0:00:07.1]} 51... Rf5 {[%clk 0:00:24]} 0-1